[Event "Late-Titled-Tuesday-Blitz-March-19-2024"]
[Site "Chess.com"]
[Date "2024.03.19"]
[Round "1"]
[White "FontVella8"]
[Black "Charodej1"]
[Result "1-0"]
[WhiteElo "2684"]
[BlackElo "2369"]
[TimeControl "180+1"]
[EndTime "14:06:16 PDT"]
[Termination "FontVella8 won by resignation"]

1. e4 {[%clk 0:02:47.1]} 1... c6 {[%clk 0:02:58.8]} 2. d4 {[%clk 0:02:43.9]}
2... d5 {[%clk 0:02:59.4]} 3. e5 {[%clk 0:02:40.4]} 3... Bf5 {[%clk 0:02:58.2]}
4. Nf3 {[%clk 0:02:40.7]} 4... e6 {[%clk 0:02:58.1]} 5. Be2 {[%clk 0:02:41.3]}
5... c5 {[%clk 0:02:58.3]} 6. Be3 {[%clk 0:02:39.5]} 6... Nc6 {[%clk 0:02:56.8]}
7. O-O {[%clk 0:02:38.4]} 7... Bg4 {[%clk 0:02:49.1]} 8. dxc5 {[%clk 0:02:29.6]}
8... Bxf3 {[%clk 0:02:43.6]} 9. Bxf3 {[%clk 0:02:29.5]} 9... Nxe5 {[%clk
0:02:44.3]} 10. Be2 {[%clk 0:02:28.7]} 10... Nf6 {[%clk 0:02:38.9]} 11. b4
{[%clk 0:02:25.3]} 11... Be7 {[%clk 0:02:30.7]} 12. Nc3 {[%clk 0:02:23.4]} 12...
O-O {[%clk 0:02:27.3]} 13. h3 {[%clk 0:02:22.2]} 13... a5 {[%clk 0:02:13.7]} 14.
a3 {[%clk 0:02:21.7]} 14... b6 {[%clk 0:02:07.6]} 15. cxb6 {[%clk 0:02:13.3]}
15... axb4 {[%clk 0:02:07]} 16. axb4 {[%clk 0:02:10.8]} 16... Bxb4 {[%clk
0:01:57.9]} 17. Nb5 {[%clk 0:02:10.4]} 17... Rxa1 {[%clk 0:01:19.8]} 18. Qxa1
{[%clk 0:02:10.2]} 18... Nc4 {[%clk 0:01:18.9]} 19. Bxc4 {[%clk 0:02:09.1]}
19... dxc4 {[%clk 0:01:19.1]} 20. Rb1 {[%clk 0:01:58.5]} 20... Nd5 {[%clk
0:01:17]} 21. Qd4 {[%clk 0:01:30.1]} 21... Ba5 {[%clk 0:00:54.3]} 22. b7 {[%clk
0:01:26.2]} 22... Qb8 {[%clk 0:00:36.9]} 23. Qa7 {[%clk 0:01:13]} 23... Nxe3
{[%clk 0:00:12.4]} 24. Qxa5 {[%clk 0:01:05.6]} 24... Nd5 {[%clk 0:00:11.5]} 25.
Nd4 {[%clk 0:00:59.8]} 25... Qf4 {[%clk 0:00:06]} 26. Qa8 {[%clk 0:00:52]} 26...
h5 {[%clk 0:00:04.9]} 27. Qxf8+ {[%clk 0:00:51.1]} 27... Kxf8 {[%clk 0:00:05.1]}
28. b8=Q+ {[%clk 0:00:51.6]} 1-0

[Event "Late-Titled-Tuesday-Blitz-March-19-2024"]
[Site "Chess.com"]
[Date "2024.03.19"]
[Round "1"]
[White "GoltsevDmitry2000"]
[Black "Narek_Ghimoyan"]
[Result "1-0"]
[WhiteElo "2761"]
[BlackElo "2450"]
[TimeControl "180+1"]
[EndTime "14:06:17 PDT"]
[Termination "GoltsevDmitry2000 won by resignation"]

1. e4 {[%clk 0:02:59.1]} 1... c5 {[%clk 0:02:59.6]} 2. Nf3 {[%clk 0:02:59.5]}
2... d6 {[%clk 0:02:59.9]} 3. d4 {[%clk 0:02:59.7]} 3... cxd4 {[%clk 0:03:00.8]}
4. Nxd4 {[%clk 0:03:00.6]} 4... Nf6 {[%clk 0:03:01.3]} 5. Nc3 {[%clk 0:03:01.1]}
5... a6 {[%clk 0:03:01.8]} 6. Be2 {[%clk 0:03:01.1]} 6... e5 {[%clk 0:03:01.7]}
7. Nf5 {[%clk 0:03:01.3]} 7... d5 {[%clk 0:02:59.1]} 8. Bg5 {[%clk 0:03:01]}
8... d4 {[%clk 0:02:59.1]} 9. Bxf6 {[%clk 0:03:00.9]} 9... gxf6 {[%clk
0:02:56.1]} 10. Nb1 {[%clk 0:03:00.6]} 10... Nc6 {[%clk 0:02:54]} 11. c3 {[%clk
0:02:59.9]} 11... Bxf5 {[%clk 0:02:49.3]} 12. exf5 {[%clk 0:03:00.8]} 12... Qb6
{[%clk 0:02:49.7]} 13. Qb3 {[%clk 0:02:58.6]} 13... Bc5 {[%clk 0:02:42.1]} 14.
Qxb6 {[%clk 0:02:56.9]} 14... Bxb6 {[%clk 0:02:43]} 15. Nd2 {[%clk 0:02:57.1]}
15... dxc3 {[%clk 0:02:42.7]} 16. bxc3 {[%clk 0:02:58]} 16... Ba5 {[%clk
0:02:39.6]} 17. Ne4 {[%clk 0:02:57.8]} 17... Ke7 {[%clk 0:02:39.1]} 18. a4
{[%clk 0:02:57.4]} 18... Nd4 {[%clk 0:02:33.2]} 19. Bd3 {[%clk 0:02:52.1]} 19...
Nxf5 {[%clk 0:02:30.7]} 20. O-O {[%clk 0:02:52.2]} 20... Nd6 {[%clk 0:02:30.4]}
21. Nxd6 {[%clk 0:02:47.6]} 21... Kxd6 {[%clk 0:02:31.3]} 22. c4 {[%clk
0:02:48.3]} 22... Bc3 {[%clk 0:02:16.6]} 23. Rab1 {[%clk 0:02:46.8]} 23... Rab8
{[%clk 0:02:16.2]} 24. Rb6+ {[%clk 0:02:46.1]} 24... Ke7 {[%clk 0:01:20.7]} 25.
Rfb1 {[%clk 0:02:44.3]} 25... Rhd8 {[%clk 0:01:19.5]} 26. Rxb7+ {[%clk
0:02:42.8]} 26... Rxb7 {[%clk 0:01:19.2]} 27. Rxb7+ {[%clk 0:02:43.7]} 27... Kf8
{[%clk 0:01:18]} 28. Bf1 {[%clk 0:02:41.2]} 28... Rd2 {[%clk 0:01:14.2]} 29. g3
{[%clk 0:02:32.5]} 29... Bd4 {[%clk 0:01:10]} 30. Bg2 {[%clk 0:02:30.1]} 30...
Rxf2 {[%clk 0:01:07.1]} 31. Kh1 {[%clk 0:02:25.8]} 31... f5 {[%clk 0:00:48.1]}
32. Bd5 {[%clk 0:02:25.2]} 32... f4 {[%clk 0:00:32.3]} 33. Rxf7+ {[%clk
0:02:23.3]} 33... Ke8 {[%clk 0:00:33.2]} 34. gxf4 {[%clk 0:02:23.2]} 34... exf4
{[%clk 0:00:33.4]} 35. Rf5 {[%clk 0:02:12.2]} 35... Ke7 {[%clk 0:00:32.5]} 36.
h4 {[%clk 0:02:08.5]} 36... Be3 {[%clk 0:00:31.7]} 37. Be4 {[%clk 0:02:01.7]}
37... Kd6 {[%clk 0:00:31]} 38. c5+ {[%clk 0:01:58.7]} 38... Ke6 {[%clk
0:00:29.8]} 39. c6 {[%clk 0:01:57.5]} 39... Rf1+ {[%clk 0:00:24.3]} 40. Kg2
{[%clk 0:01:56.8]} 40... Rg1+ {[%clk 0:00:24]} 41. Kf3 {[%clk 0:01:56]} 41...
Rf1+ {[%clk 0:00:24]} 42. Kg4 {[%clk 0:01:54.4]} 42... Rg1+ {[%clk 0:00:20]} 43.
Kh5 {[%clk 0:01:54.5]} 43... Rc1 {[%clk 0:00:20.7]} 44. Kh6 {[%clk 0:01:43.4]}
44... Rc4 {[%clk 0:00:16.2]} 45. Bd5+ {[%clk 0:01:43.3]} 45... Kxf5 {[%clk
0:00:16.4]} 46. Bxc4 {[%clk 0:01:44.2]} 46... f3+ {[%clk 0:00:16.6]} 47. Kxh7
{[%clk 0:01:44.6]} 47... f2 {[%clk 0:00:17.1]} 48. c7 {[%clk 0:01:43.4]} 1-0

[Event "Late-Titled-Tuesday-Blitz-March-19-2024"]
[Site "Chess.com"]
[Date "2024.03.19"]
[Round "1"]
[White "chess_blitz00"]
[Black "DeTimmerman"]
[Result "0-1"]
[WhiteElo "2440"]
[BlackElo "2759"]
[TimeControl "180+1"]
[EndTime "14:06:19 PDT"]
[Termination "DeTimmerman won by checkmate"]

1. Nf3 {[%clk 0:03:00.9]} 1... Nf6 {[%clk 0:02:57.6]} 2. e3 {[%clk 0:03:00]}
2... e6 {[%clk 0:02:56.8]} 3. c4 {[%clk 0:02:55.2]} 3... d5 {[%clk 0:02:57.7]}
4. Nc3 {[%clk 0:02:54.6]} 4... Be7 {[%clk 0:02:53]} 5. Be2 {[%clk 0:02:53.8]}
5... dxc4 {[%clk 0:02:51]} 6. Bxc4 {[%clk 0:02:52.5]} 6... a6 {[%clk 0:02:51.9]}
7. d4 {[%clk 0:02:51]} 7... b5 {[%clk 0:02:50]} 8. Bd3 {[%clk 0:02:51.5]} 8...
Bb7 {[%clk 0:02:50]} 9. Ne2 {[%clk 0:02:48.5]} 9... Nbd7 {[%clk 0:02:50.1]} 10.
Ng3 {[%clk 0:02:42.7]} 10... c5 {[%clk 0:02:49.6]} 11. O-O {[%clk 0:02:39.8]}
11... cxd4 {[%clk 0:02:42.6]} 12. Nxd4 {[%clk 0:02:37.8]} 12... O-O {[%clk
0:02:30.3]} 13. b3 {[%clk 0:02:24.5]} 13... Nc5 {[%clk 0:02:28.8]} 14. Be2
{[%clk 0:02:18.7]} 14... Qb6 {[%clk 0:02:20.9]} 15. Bb2 {[%clk 0:02:02.4]} 15...
Rfd8 {[%clk 0:02:19.5]} 16. Qc2 {[%clk 0:01:55.3]} 16... Rac8 {[%clk 0:02:16.8]}
17. Rac1 {[%clk 0:01:46.9]} 17... Na4 {[%clk 0:02:06]} 18. Qb1 {[%clk
0:01:46.9]} 18... Nxb2 {[%clk 0:02:05.6]} 19. Qxb2 {[%clk 0:01:47.8]} 19... Qa5
{[%clk 0:02:03.1]} 20. Bf3 {[%clk 0:01:42.5]} 20... Ba3 {[%clk 0:02:00.4]} 21.
Qb1 {[%clk 0:00:10.6]} 21... Rxc1 {[%clk 0:01:51.9]} 22. Rxc1 {[%clk 0:00:10.5]}
22... Bxf3 {[%clk 0:01:34.9]} 23. gxf3 {[%clk 0:00:04.5]} 23... Bxc1 {[%clk
0:01:35]} 24. Qxc1 {[%clk 0:00:04.2]} 24... Qb6 {[%clk 0:01:32]} 25. f4 {[%clk
0:00:03.1]} 25... g6 {[%clk 0:01:29.2]} 26. Kg2 {[%clk 0:00:03.1]} 26... Nd5
{[%clk 0:01:23.8]} 27. Nf3 {[%clk 0:00:03]} 27... Qb7 {[%clk 0:01:20.7]} 28. Qb2
{[%clk 0:00:03.5]} 28... Rc8 {[%clk 0:01:12.7]} 29. Qe5 {[%clk 0:00:03.9]} 29...
Qc7 {[%clk 0:01:08.4]} 30. Qg5 {[%clk 0:00:03.6]} 30... Qc2 {[%clk 0:01:06.4]}
31. h4 {[%clk 0:00:03]} 31... Nxe3+ {[%clk 0:01:05.2]} 32. Kh3 {[%clk
0:00:02.8]} 32... Qxf2 {[%clk 0:01:04.6]} 33. Qf6 {[%clk 0:00:02.8]} 33... Qg2#
{[%clk 0:01:03.4]} 0-1

[Event "Late-Titled-Tuesday-Blitz-March-19-2024"]
[Site "Chess.com"]
[Date "2024.03.19"]
[Round "1"]
[White "GM_shahin"]
[Black "jaskol95"]
[Result "1-0"]
[WhiteElo "2910"]
[BlackElo "2520"]
[TimeControl "180+1"]
[EndTime "14:06:21 PDT"]
[Termination "GM_shahin won by checkmate"]

1. e4 {[%clk 0:03:00.9]} 1... e6 {[%clk 0:02:59.9]} 2. d4 {[%clk 0:02:59.6]}
2... d5 {[%clk 0:03:00.3]} 3. Nd2 {[%clk 0:02:59.2]} 3... Nf6 {[%clk 0:03:00.2]}
4. e5 {[%clk 0:02:58.8]} 4... Nfd7 {[%clk 0:03:00.9]} 5. f4 {[%clk 0:02:59.4]}
5... c5 {[%clk 0:02:58.7]} 6. c3 {[%clk 0:03:00]} 6... Nc6 {[%clk 0:02:59.3]} 7.
Ndf3 {[%clk 0:03:00.7]} 7... a5 {[%clk 0:02:57.9]} 8. Bd3 {[%clk 0:02:57]} 8...
a4 {[%clk 0:02:53.7]} 9. Ne2 {[%clk 0:02:54.2]} 9... a3 {[%clk 0:02:46.3]} 10.
b3 {[%clk 0:02:49.5]} 10... cxd4 {[%clk 0:02:45.5]} 11. cxd4 {[%clk 0:02:47.4]}
11... Bb4+ {[%clk 0:02:35.4]} 12. Bd2 {[%clk 0:02:43]} 12... g6 {[%clk
0:02:24.7]} 13. O-O {[%clk 0:02:38.4]} 13... Qb6 {[%clk 0:02:21.4]} 14. Rc1
{[%clk 0:02:34.2]} 14... O-O {[%clk 0:02:12.4]} 15. Qe1 {[%clk 0:02:28.8]} 15...
Bxd2 {[%clk 0:02:11.9]} 16. Qxd2 {[%clk 0:02:24.6]} 16... Qa5 {[%clk 0:02:00.3]}
17. Qe3 {[%clk 0:02:18.6]} 17... Nb4 {[%clk 0:01:55.1]} 18. Bb1 {[%clk
0:02:17.2]} 18... b6 {[%clk 0:01:44.9]} 19. f5 {[%clk 0:02:17.1]} 19... exf5
{[%clk 0:01:34.8]} 20. Qh6 {[%clk 0:02:15.9]} 20... Re8 {[%clk 0:01:24.1]} 21.
Rc7 {[%clk 0:02:02.7]} 21... Ra7 {[%clk 0:00:35.9]} 22. e6 {[%clk 0:00:46.3]}
22... fxe6 {[%clk 0:00:15.8]} 23. Ng5 {[%clk 0:00:44.9]} 23... Nf8 {[%clk
0:00:03.1]} 24. Qg7# {[%clk 0:00:40.3]} 1-0

[Event "Late-Titled-Tuesday-Blitz-March-19-2024"]
[Site "Chess.com"]
[Date "2024.03.19"]
[Round "1"]
[White "SocoLoco"]
[Black "Crazy_girl99"]
[Result "0-1"]
[WhiteElo "2155"]
[BlackElo "2598"]
[TimeControl "180+1"]
[EndTime "14:06:21 PDT"]
[Termination "Crazy_girl99 won on time"]

1. e4 {[%clk 0:02:58.2]} 1... e5 {[%clk 0:03:00.1]} 2. d4 {[%clk 0:02:57.2]}
2... exd4 {[%clk 0:03:00.1]} 3. Nf3 {[%clk 0:02:57.1]} 3... Nc6 {[%clk
0:02:59.8]} 4. Nxd4 {[%clk 0:02:56.8]} 4... Nf6 {[%clk 0:03:00.2]} 5. Nc3 {[%clk
0:02:56.1]} 5... Bb4 {[%clk 0:02:59.9]} 6. Nxc6 {[%clk 0:02:56.4]} 6... bxc6
{[%clk 0:03:00.8]} 7. Bd3 {[%clk 0:02:56.1]} 7... O-O {[%clk 0:03:01.4]} 8. O-O
{[%clk 0:02:54.5]} 8... d5 {[%clk 0:03:01.6]} 9. exd5 {[%clk 0:02:54.5]} 9...
cxd5 {[%clk 0:03:00.9]} 10. Bg5 {[%clk 0:02:54.3]} 10... c6 {[%clk 0:03:00.1]}
11. Na4 {[%clk 0:02:53.4]} 11... Rb8 {[%clk 0:02:56.5]} 12. c4 {[%clk
0:02:52.7]} 12... h6 {[%clk 0:02:54.1]} 13. Bh4 {[%clk 0:02:51.9]} 13... Be7
{[%clk 0:02:46.7]} 14. Rc1 {[%clk 0:02:49.3]} 14... Be6 {[%clk 0:02:46.4]} 15.
b3 {[%clk 0:02:48.5]} 15... Ng4 {[%clk 0:02:41.3]} 16. Bxe7 {[%clk 0:02:46.4]}
16... Qxe7 {[%clk 0:02:42.2]} 17. h3 {[%clk 0:02:45.1]} 17... Ne5 {[%clk
0:02:42]} 18. Re1 {[%clk 0:02:15.8]} 18... Qg5 {[%clk 0:02:39.3]} 19. Kh2 {[%clk
0:01:57.4]} 19... Qf4+ {[%clk 0:02:34.6]} 20. Kg1 {[%clk 0:01:57.3]} 20... Rfe8
{[%clk 0:02:29.5]} 21. Bf1 {[%clk 0:01:52.2]} 21... Bxh3 {[%clk 0:02:28.1]} 22.
Rxe5 {[%clk 0:01:42.7]} 22... Rxe5 {[%clk 0:02:24]} 23. gxh3 {[%clk 0:01:42.3]}
23... Rg5+ {[%clk 0:02:24.3]} 24. Bg2 {[%clk 0:01:32.4]} 24... Re8 {[%clk
0:02:17.2]} 25. cxd5 {[%clk 0:01:26.6]} 25... cxd5 {[%clk 0:02:15.3]} 26. Rc3
{[%clk 0:01:14.1]} 26... d4 {[%clk 0:02:07.4]} 27. Rd3 {[%clk 0:01:09.2]} 27...
Rge5 {[%clk 0:02:07.1]} 28. Qg4 {[%clk 0:00:47.4]} 28... Re1+ {[%clk 0:01:59.2]}
29. Bf1 {[%clk 0:00:47.1]} 29... Qc1 {[%clk 0:01:59.6]} 30. Qg2 {[%clk
0:00:38.1]} 30... Rxf1+ {[%clk 0:01:59.2]} 31. Qxf1 {[%clk 0:00:35.4]} 31... Re1
{[%clk 0:01:59.8]} 32. Qxe1 {[%clk 0:00:32.9]} 32... Qxe1+ {[%clk 0:02:00.7]}
33. Kg2 {[%clk 0:00:31.6]} 33... Qe4+ {[%clk 0:02:00.7]} 34. Rf3 {[%clk
0:00:30.6]} 34... d3 {[%clk 0:02:00.9]} 35. Nc3 {[%clk 0:00:26.2]} 35... Qc6
{[%clk 0:02:00.1]} 36. Nd1 {[%clk 0:00:22.1]} 36... d2 {[%clk 0:02:00]} 37. Ne3
{[%clk 0:00:21.4]} 37... Qe4 {[%clk 0:01:52.2]} 38. Nd1 {[%clk 0:00:17.9]} 38...
Qe1 {[%clk 0:01:46.1]} 39. Ne3 {[%clk 0:00:15.7]} 39... d1=Q {[%clk 0:01:46.6]}
40. Nxd1 {[%clk 0:00:16]} 40... Qxd1 {[%clk 0:01:47.5]} 41. Re3 {[%clk 0:00:15]}
41... g5 {[%clk 0:01:46.7]} 42. a4 {[%clk 0:00:14.6]} 42... Kg7 {[%clk
0:01:46.8]} 43. Kg3 {[%clk 0:00:13.6]} 43... f5 {[%clk 0:01:44.1]} 44. Re7+
{[%clk 0:00:11.7]} 44... Kg6 {[%clk 0:01:44.4]} 45. Rxa7 {[%clk 0:00:09.1]}
45... f4+ {[%clk 0:01:42.8]} 46. Kg2 {[%clk 0:00:08.4]} 46... Qd5+ {[%clk
0:01:37.6]} 47. Kg1 {[%clk 0:00:07.5]} 47... Qxb3 {[%clk 0:01:37.8]} 48. Ra6+
{[%clk 0:00:06.8]} 48... Kh5 {[%clk 0:01:38]} 49. Ra8 {[%clk 0:00:05.3]} 49...
Qb1+ {[%clk 0:01:35.9]} 50. Kg2 {[%clk 0:00:04.7]} 50... Qe4+ {[%clk 0:01:35.9]}
0-1

[Event "Late-Titled-Tuesday-Blitz-March-19-2024"]
[Site "Chess.com"]
[Date "2024.03.19"]
[Round "1"]
[White "jocmil"]
[Black "Kopytkin"]
[Result "1-0"]
[WhiteElo "2752"]
[BlackElo "2433"]
[TimeControl "180+1"]
[EndTime "14:06:23 PDT"]
[Termination "jocmil won by resignation"]

1. d4 {[%clk 0:03:00.9]} 1... Nf6 {[%clk 0:02:58.6]} 2. Nc3 {[%clk 0:03:01.2]}
2... g6 {[%clk 0:02:54]} 3. e4 {[%clk 0:03:01.2]} 3... d5 {[%clk 0:02:54.6]} 4.
h4 {[%clk 0:03:01.8]} 4... h5 {[%clk 0:02:46.9]} 5. e5 {[%clk 0:03:00.5]} 5...
Ne4 {[%clk 0:02:47.2]} 6. Nxe4 {[%clk 0:03:00.2]} 6... dxe4 {[%clk 0:02:47.2]}
7. Bc4 {[%clk 0:02:59.4]} 7... Bg4 {[%clk 0:02:35.3]} 8. Ne2 {[%clk 0:02:53]}
8... Nd7 {[%clk 0:02:20.5]} 9. e6 {[%clk 0:02:12.7]} 9... fxe6 {[%clk
0:02:19.7]} 10. f3 {[%clk 0:02:12.4]} 10... exf3 {[%clk 0:02:16.8]} 11. gxf3
{[%clk 0:02:13.3]} 11... Bf5 {[%clk 0:02:16.4]} 12. Nf4 {[%clk 0:02:06.7]} 12...
Nb6 {[%clk 0:02:09.2]} 13. Bxe6 {[%clk 0:01:50.8]} 13... Qd6 {[%clk 0:01:41.2]}
14. Bxf5 {[%clk 0:01:46.9]} 14... gxf5 {[%clk 0:01:42.1]} 15. Qd3 {[%clk
0:01:46.6]} 15... e6 {[%clk 0:01:30.5]} 16. Bd2 {[%clk 0:01:30.3]} 16... O-O-O
{[%clk 0:01:27.6]} 17. O-O-O {[%clk 0:01:27.6]} 17... Bh6 {[%clk 0:01:24.5]} 18.
Ng6 {[%clk 0:01:22.9]} 18... Bxd2+ {[%clk 0:01:21.3]} 19. Qxd2 {[%clk
0:01:17.6]} 19... Nc4 {[%clk 0:01:15.5]} 20. Qc3 {[%clk 0:01:07.8]} 20... Rhg8
{[%clk 0:01:15]} 21. Rhg1 {[%clk 0:01:03.1]} 21... Nb6 {[%clk 0:01:11.2]} 22.
Qc5 {[%clk 0:00:47.5]} 22... Nd5 {[%clk 0:01:01.1]} 23. c4 {[%clk 0:00:38.5]}
23... Nb6 {[%clk 0:00:49.7]} 24. Ne7+ {[%clk 0:00:35.6]} 24... Kb8 {[%clk
0:00:38.7]} 25. Qxd6 {[%clk 0:00:33.5]} 25... cxd6 {[%clk 0:00:34.7]} 26. Rxg8
{[%clk 0:00:32.8]} 26... Rxg8 {[%clk 0:00:31.2]} 27. Nxg8 {[%clk 0:00:33.7]}
27... Nxc4 {[%clk 0:00:31.2]} 28. Nf6 {[%clk 0:00:33.8]} 28... Kc7 {[%clk
0:00:28.1]} 29. Nxh5 {[%clk 0:00:34.1]} 1-0

[Event "Late-Titled-Tuesday-Blitz-March-19-2024"]
[Site "Chess.com"]
[Date "2024.03.19"]
[Round "1"]
[White "mbojan"]
[Black "Inepton_Fermion"]
[Result "1-0"]
[WhiteElo "2789"]
[BlackElo "2465"]
[TimeControl "180+1"]
[EndTime "14:06:24 PDT"]
[Termination "mbojan won by resignation"]

1. e4 {[%clk 0:03:00.2]} 1... g6 {[%clk 0:02:58]} 2. d4 {[%clk 0:03:00.3]} 2...
Bg7 {[%clk 0:02:58.4]} 3. Nc3 {[%clk 0:03:00.8]} 3... d5 {[%clk 0:02:58.7]} 4.
exd5 {[%clk 0:03:00.4]} 4... Nf6 {[%clk 0:02:59.2]} 5. Bc4 {[%clk 0:02:59.8]}
5... Nbd7 {[%clk 0:02:59.6]} 6. Nf3 {[%clk 0:02:58]} 6... Nb6 {[%clk 0:03:00]}
7. Bb3 {[%clk 0:02:58.3]} 7... O-O {[%clk 0:02:57.6]} 8. O-O {[%clk 0:02:58.1]}
8... a5 {[%clk 0:02:58]} 9. a4 {[%clk 0:02:57.9]} 9... Nfxd5 {[%clk 0:02:58.5]}
10. Nxd5 {[%clk 0:02:53.8]} 10... Nxd5 {[%clk 0:02:59.4]} 11. Re1 {[%clk
0:02:54]} 11... Bg4 {[%clk 0:02:49.3]} 12. h3 {[%clk 0:02:52.3]} 12... Bxf3
{[%clk 0:02:49.3]} 13. Qxf3 {[%clk 0:02:52.6]} 13... c6 {[%clk 0:02:47.4]} 14.
c3 {[%clk 0:02:51.7]} 14... Re8 {[%clk 0:02:46.4]} 15. Bg5 {[%clk 0:02:50.9]}
15... Qc7 {[%clk 0:02:45.4]} 16. Bxd5 {[%clk 0:02:48.6]} 16... cxd5 {[%clk
0:02:45]} 17. Qxd5 {[%clk 0:02:48.9]} 17... Qb6 {[%clk 0:02:28.6]} 18. Qb5
{[%clk 0:02:43.9]} 18... Qxb5 {[%clk 0:02:17.9]} 19. axb5 {[%clk 0:02:44.8]}
19... e5 {[%clk 0:02:17.8]} 20. dxe5 {[%clk 0:02:42.5]} 20... Bxe5 {[%clk
0:02:11.2]} 21. Kf1 {[%clk 0:02:39.6]} 21... a4 {[%clk 0:02:10.9]} 22. f4 {[%clk
0:02:31.3]} 22... f6 {[%clk 0:01:23.9]} 23. Bh6 {[%clk 0:02:31.1]} 23... Bd6
{[%clk 0:01:07.2]} 24. Rxe8+ {[%clk 0:02:30.4]} 24... Rxe8 {[%clk 0:01:08.1]}
25. Rxa4 {[%clk 0:02:30.3]} 25... Kf7 {[%clk 0:01:04.7]} 26. Rd4 {[%clk
0:02:26.1]} 26... Re6 {[%clk 0:00:53.3]} 27. f5 {[%clk 0:01:52.4]} 27... gxf5
{[%clk 0:00:52.3]} 28. Bf4 {[%clk 0:01:52.6]} 28... Bxf4 {[%clk 0:00:51]} 29.
Rxf4 {[%clk 0:01:53.5]} 29... Re5 {[%clk 0:00:49.5]} 30. c4 {[%clk 0:01:53.8]}
30... Ke6 {[%clk 0:00:48.6]} 31. Kf2 {[%clk 0:01:52]} 31... Rc5 {[%clk
0:00:20.8]} 32. b4 {[%clk 0:01:46.2]} 32... Rc7 {[%clk 0:00:20.4]} 33. c5 {[%clk
0:01:27.9]} 33... Ke5 {[%clk 0:00:20.3]} 34. Rh4 {[%clk 0:01:19.2]} 34... Rd7
{[%clk 0:00:19.9]} 35. b6 {[%clk 0:01:18.8]} 35... Rd2+ {[%clk 0:00:16.5]} 36.
Kg1 {[%clk 0:01:18.5]} 36... Rb2 {[%clk 0:00:17.3]} 37. Rxh7 {[%clk 0:01:17.7]}
37... Rxb4 {[%clk 0:00:17.7]} 38. Rxb7 {[%clk 0:01:17.9]} 38... Kf4 {[%clk
0:00:17]} 39. Kh2 {[%clk 0:01:16.1]} 39... Ke5 {[%clk 0:00:15.1]} 40. Rc7 {[%clk
0:01:16]} 40... f4 {[%clk 0:00:14.8]} 41. b7 {[%clk 0:01:16]} 41... Rb2 {[%clk
0:00:14.9]} 42. c6 {[%clk 0:01:15.4]} 42... f3 {[%clk 0:00:15]} 43. Rc8 {[%clk
0:01:15.8]} 43... Rxg2+ {[%clk 0:00:11.4]} 44. Kh1 {[%clk 0:01:15.6]} 1-0

[Event "Late-Titled-Tuesday-Blitz-March-19-2024"]
[Site "Chess.com"]
[Date "2024.03.19"]
[Round "1"]
[White "Sacbutt"]
[Black "manitodeplomo"]
[Result "0-1"]
[WhiteElo "2312"]
[BlackElo "2650"]
[TimeControl "180+1"]
[EndTime "14:06:25 PDT"]
[Termination "manitodeplomo won on time"]

1. e4 {[%clk 0:02:59.5]} 1... c5 {[%clk 0:02:55.6]} 2. Nf3 {[%clk 0:02:59.3]}
2... e6 {[%clk 0:02:55.2]} 3. d4 {[%clk 0:02:59.1]} 3... cxd4 {[%clk 0:02:55.8]}
4. c3 {[%clk 0:02:59.8]} 4... dxc3 {[%clk 0:02:55.3]} 5. Nxc3 {[%clk 0:03:00.7]}
5... Nc6 {[%clk 0:02:55.5]} 6. Bc4 {[%clk 0:03:01.2]} 6... a6 {[%clk 0:02:56.4]}
7. O-O {[%clk 0:03:01.1]} 7... b5 {[%clk 0:02:56.4]} 8. Bb3 {[%clk 0:02:59.6]}
8... Na5 {[%clk 0:02:56.8]} 9. Bc2 {[%clk 0:02:58.8]} 9... Bb7 {[%clk
0:02:56.9]} 10. Qe2 {[%clk 0:02:57.8]} 10... Rc8 {[%clk 0:02:56.9]} 11. Bf4
{[%clk 0:02:51.8]} 11... Ne7 {[%clk 0:02:55.8]} 12. Rad1 {[%clk 0:02:33.7]}
12... Ng6 {[%clk 0:02:52.2]} 13. Bg3 {[%clk 0:02:27.2]} 13... Be7 {[%clk
0:02:47.3]} 14. e5 {[%clk 0:02:09.2]} 14... O-O {[%clk 0:02:32.9]} 15. Ne4
{[%clk 0:01:58.8]} 15... Nc4 {[%clk 0:02:25.6]} 16. b3 {[%clk 0:01:40.4]} 16...
Nb6 {[%clk 0:02:16.8]} 17. Bb1 {[%clk 0:01:19.2]} 17... Nd5 {[%clk 0:02:07.7]}
18. Rc1 {[%clk 0:01:08.6]} 18... Qb6 {[%clk 0:01:59.4]} 19. h4 {[%clk
0:01:04.5]} 19... Rxc1 {[%clk 0:01:51.4]} 20. Rxc1 {[%clk 0:01:04.6]} 20... Rc8
{[%clk 0:01:51.7]} 21. Rxc8+ {[%clk 0:01:02.6]} 21... Bxc8 {[%clk 0:01:52.6]}
22. h5 {[%clk 0:01:02.7]} 22... Nf8 {[%clk 0:01:52.7]} 23. h6 {[%clk 0:00:45.5]}
23... g6 {[%clk 0:01:51]} 24. Qd2 {[%clk 0:00:39.1]} 24... Bb7 {[%clk
0:01:47.8]} 25. Bd3 {[%clk 0:00:32.8]} 25... Qc6 {[%clk 0:01:30.5]} 26. Kh2
{[%clk 0:00:24.6]} 26... b4 {[%clk 0:01:21.1]} 27. Nd4 {[%clk 0:00:15.9]} 27...
Qb6 {[%clk 0:01:20.3]} 28. Bc4 {[%clk 0:00:13.9]} 28... a5 {[%clk 0:01:17.7]}
29. f3 {[%clk 0:00:07.3]} 29... Qd8 {[%clk 0:01:16.5]} 30. Qd3 {[%clk
0:00:03.1]} 30... Bh4 {[%clk 0:01:15.6]} 31. Nc5 {[%clk 0:00:01.8]} 31... Bxg3+
{[%clk 0:01:12.4]} 32. Kxg3 {[%clk 0:00:01.7]} 32... Qg5+ {[%clk 0:01:12.6]} 33.
Kf2 {[%clk 0:00:01.5]} 33... Ba8 {[%clk 0:01:03.5]} 34. Bxd5 {[%clk 0:00:01.9]}
34... Bxd5 {[%clk 0:01:02.3]} 0-1